bitfinex-derivatives/quotes_BTCF0:USTF0_20250528
["timestamp","ask_amount","ask_price","bid_price","bid_amount"]
[1748450031635,1.06541066,107310.0,107300.0,0.71653701]
[1748450031636,1.28081626,107310.0,107300.0,0.71653701]
[1748450031839,1.28081626,107310.0,107300.0,0.6572217]
[1748450032031,1.28081626,107310.0,107300.0,0.64416348]
[1748450032428,1.28081626,107310.0,107300.0,0.64867903]
[1748450033131,1.28081626,107310.0,107300.0,0.72105927]
[1748450033533,1.28081626,107310.0,107300.0,0.71654372]
[1748450033739,1.28081626,107310.0,107300.0,0.7651509]
[1748450034042,1.06541066,107310.0,107300.0,0.7651509]
[1748450034237,1.31711626,107310.0,107300.0,0.76547622]
[1748450034439,1.31711626,107310.0,107300.0,0.76555805]
[1748450034742,1.31711626,107310.0,107300.0,0.73155805]
[1748450035532,1.31711626,107310.0,107300.0,0.65902357]
[1748450035736,1.31711626,107310.0,107300.0,0.67225499]
[1748450036646,1.31711626,107310.0,107300.0,0.67677054]
[1748450036944,1.31711626,107310.0,107300.0,0.67677126]
[1748450037146,1.31711626,107310.0,107300.0,0.67677125]
[1748450037347,1.31711626,107310.0,107300.0,0.67679291]
[1748450038440,1.31711626,107310.0,107300.0,0.72986504]
[1748450038644,1.30197088,107310.0,107300.0,0.72986504]
[1748450038840,1.30197088,107310.0,107300.0,0.76396504]
[1748450039041,1.08656528,107310.0,107300.0,0.76396504]
[1748450039236,1.30197088,107310.0,107300.0,0.75083125]
[1748450039435,1.30197088,107310.0,107300.0,0.7620317]
[1748450039635,1.30197088,107310.0,107300.0,0.8332675]
[1748450039838,1.30197088,107310.0,107300.0,0.82025255]
[1748450040037,1.30197088,107310.0,107300.0,0.72950994]
[1748450040249,1.30197088,107310.0,107300.0,0.72949632]
[1748450041049,1.26563088,107310.0,107300.0,0.71650357]
[1748450041243,1.25654412,107310.0,107300.0,0.70223347]
[1748450041446,1.25654412,107310.0,107300.0,0.72944354]
[1748450041748,1.25654412,107310.0,107300.0,0.72492659]
[1748450041945,1.25654412,107310.0,107300.0,0.72492696]
[1748450042348,1.25654412,107310.0,107300.0,0.7248585]
[1748450042548,1.25654412,107310.0,107300.0,0.72937405]
[1748450043150,1.25654412,107310.0,107300.0,0.72937511]
[1748450043340,1.25654412,107310.0,107300.0,0.72937667]
[1748450043540,1.25654412,107310.0,107300.0,0.7293767]
[1748450043741,1.25654412,107310.0,107300.0,0.72937716]
[1748450044144,1.25654412,107310.0,107300.0,0.80054984]
[1748450044639,1.25654412,107310.0,107300.0,0.79603593]
[1748450045243,1.25654412,107310.0,107300.0,0.7831644]
[1748450045545,1.25654412,107310.0,107300.0,0.69771792]
[1748450045847,1.04113852,107310.0,107300.0,0.70223347]
[1748450046045,1.04113852,107310.0,107300.0,0.72937525]
[1748450046247,0.97053852,107310.0,107300.0,0.72937525]
[1748450046450,1.00783852,107310.0,107300.0,0.65369509]
[1748450046644,1.00783852,107310.0,107300.0,0.73328468]
[1748450046851,1.00783852,107310.0,107300.0,0.72043162]
[1748450047152,1.00783852,107310.0,107300.0,0.7332977]
[1748450047443,1.00783852,107310.0,107300.0,0.71953546]
[1748450047650,1.00783852,107310.0,107300.0,0.75211375]
[1748450048351,0.67027066,107310.0,107300.0,0.76311375]
[1748450048645,0.67027066,107310.0,107300.0,0.84678343]
[1748450048646,0.22276671,107310.0,107300.0,0.84678343]
[1748450048944,0.65508671,107310.0,107300.0,0.84675302]
[1748450049145,0.65508671,107310.0,107300.0,0.83395721]
[1748450049351,1.0754564,107320.0,107310.0,0.1863114]
[1748450049541,1.4408764,107320.0,107310.0,0.82909225]
[1748450049942,1.4408764,107320.0,107310.0,0.81667401]
[1748450050646,1.1435764,107320.0,107310.0,0.82667401]
[1748450050850,0.926662,107320.0,107310.0,0.82667401]
[1748450051147,1.37285602,107320.0,107310.0,0.82666087]
[1748450051449,1.37385602,107320.0,107310.0,0.82666086]
[1748450051646,0.44667402,107320.0,107310.0,0.77978251]
[1748450051852,1.59829922,107320.0,107310.0,0.48643888]
[1748450052147,1.96719609,107320.0,107310.0,0.30338276]
[1748450052350,1.96719609,107320.0,107310.0,0.25650966]
[1748450052551,1.96719609,107320.0,107310.0,0.48988204]
[1748450052850,1.75179049,107320.0,107310.0,0.48994177]
[1748450053043,1.75179049,107320.0,107310.0,0.46274223]
[1748450053254,1.75179049,107320.0,107310.0,0.48995022]
[1748450053644,1.75179049,107320.0,107310.0,0.46274223]
[1748450053840,1.75179049,107320.0,107310.0,0.47564533]
[1748450054047,1.75179049,107320.0,107310.0,0.48993974]
[1748450054449,1.75179049,107320.0,107310.0,0.48993978]
[1748450054850,1.75179049,107320.0,107310.0,0.47703892]
[1748450055045,1.75179049,107320.0,107310.0,0.48994577]
[1748450055250,1.75179049,107320.0,107310.0,0.66694577]
[1748450055645,1.75179049,107320.0,107310.0,0.66973577]
[1748450055952,1.75179049,107320.0,107310.0,0.61039954]
[1748450055953,1.13317649,107320.0,107310.0,0.61039954]
[1748450056158,1.19751332,107320.0,107310.0,0.75231564]
[1748450056450,1.19751332,107320.0,107310.0,0.69265386]
[1748450056847,0.66299332,107320.0,107310.0,0.69265267]
[1748450057050,0.44758772,107320.0,107310.0,0.69265267]
[1748450057252,0.41097402,107320.0,107310.0,0.76574666]
[1748450057451,0.94545402,107320.0,107310.0,0.76574666]
[1748450058049,1.16085962,107320.0,107310.0,0.76574666]
[1748450058354,1.16085962,107320.0,107310.0,0.69834915]
[1748450058555,1.19845962,107320.0,107310.0,0.7126401]
[1748450058757,1.38475362,107320.0,107310.0,0.71264024]
[1748450058951,1.38475362,107320.0,107310.0,0.76573518]
[1748450059152,1.38375362,107320.0,107310.0,0.71464024]
[1748450059457,1.19745962,107320.0,107310.0,0.76778639]
[1748450059652,1.38375362,107320.0,107310.0,0.76778365]
[1748450059852,1.38375362,107320.0,107310.0,0.7534953]
[1748450060042,1.38375362,107320.0,107310.0,0.68231238]
[1748450060546,1.38375362,107320.0,107310.0,0.69660248]
[1748450060749,1.38375362,107320.0,107310.0,0.68231238]
[1748450060957,1.3686105,107320.0,107310.0,0.69660311]
[1748450061350,1.3686105,107320.0,107310.0,0.69664094]
[1748450061551,1.3686105,107320.0,107310.0,0.69663959]
[1748450061762,1.3686105,107320.0,107310.0,0.68234886]
[1748450061953,1.3686105,107320.0,107310.0,0.69662923]
[1748450062455,1.3686105,107320.0,107310.0,0.68234886]
[1748450062863,1.3686105,107320.0,107310.0,0.68686441]
[1748450063052,1.1823165,107320.0,107310.0,0.68686441]
[1748450063255,1.1823165,107320.0,107310.0,0.70114477]
[1748450063451,1.153205,107320.0,107310.0,0.70114466]
[1748450063647,1.153205,107320.0,107310.0,0.68686441]
[1748450063852,1.153205,107320.0,107310.0,0.70114464]
[1748450064053,1.153205,107320.0,107310.0,0.68686441]
[1748450064256,1.3686106,107320.0,107310.0,0.68686441]
[1748450064557,1.3686106,107320.0,107310.0,0.70114464]
[1748450064857,1.3686106,107320.0,107310.0,0.68686441]
[1748450065450,1.3686106,107320.0,107310.0,0.63371654]
[1748450065650,1.3686106,107320.0,107310.0,0.68657279]
[1748450066454,1.1822765,107320.0,107310.0,0.68657279]
[1748450067056,0.9668709,107320.0,107310.0,0.70085397]
[1748450067252,1.153165,107320.0,107310.0,0.70122684]
[1748450067463,1.153165,107320.0,107310.0,0.6869457]
[1748450067655,1.153165,107320.0,107310.0,0.70122679]
[1748450067956,1.153165,107320.0,107310.0,0.68243015]
[1748450068157,1.153165,107320.0,107310.0,0.69671125]
[1748450068358,1.153165,107320.0,107310.0,0.68243015]
[1748450068960,1.153165,107320.0,107310.0,0.6869457]
[1748450069154,1.153045,107320.0,107310.0,0.6869457]
[1748450069356,1.153045,107320.0,107310.0,0.75810363]
[1748450069556,1.153045,107320.0,107310.0,0.70511434]
[1748450069959,1.153045,107320.0,107310.0,0.71488016]
[1748450070262,1.153045,107320.0,107310.0,0.70059879]
[1748450070463,0.9667509,107320.0,107310.0,0.70059879]
[1748450070665,1.0800365,107320.0,107310.0,0.71488014]
[1748450070964,1.0800365,107320.0,107310.0,0.71488012]
[1748450071459,1.2663304,107320.0,107310.0,0.71488012]
[1748450071654,1.0800365,107320.0,107310.0,0.71486994]
[1748450071855,1.2663304,107320.0,107310.0,0.70059879]
[1748450072051,0.6478365,107320.0,107310.0,0.7148697]
[1748450072267,1.02227962,107320.0,107310.0,0.64455115]
[1748450072473,0.80687402,107320.0,107310.0,0.63028058]
[1748450072958,0.84237402,107320.0,107310.0,0.70046553]
[1748450073158,0.84237402,107320.0,107310.0,0.75350648]
[1748450073361,0.84237402,107320.0,107310.0,0.70046553]
[1748450073562,0.84237402,107320.0,107310.0,0.71473473]
[1748450073758,0.84237402,107320.0,107310.0,0.70046553]
[1748450073963,0.84237402,107320.0,107310.0,0.71477647]
[1748450074160,0.41017402,107320.0,107310.0,0.71477647]
[1748450074357,0.84237402,107320.0,107310.0,0.76781501]
[1748450075061,0.87777402,107320.0,107310.0,0.76781501]
[1748450075663,0.87773402,107320.0,107310.0,0.76781234]
[1748450075964,0.87773402,107320.0,107310.0,0.76781232]
[1748450076169,0.51693402,107320.0,107310.0,0.75354572]
[1748450076555,0.51693402,107320.0,107310.0,0.76781195]
[1748450077263,0.51693402,107320.0,107310.0,0.69665402]
[1748450077661,0.51693402,107320.0,107310.0,0.69665189]
[1748450077963,0.51693402,107320.0,107310.0,0.69665249]
[1748450078155,0.51693402,107320.0,107310.0,0.79503502]
[1748450078358,0.51693402,107320.0,107310.0,0.79502202]
[1748450078359,0.73233962,107320.0,107310.0,0.79502202]
[1748450078762,0.84727372,107320.0,107310.0,0.59911677]
[1748450079063,1.31603372,107320.0,107310.0,0.59911165]
[1748450079267,1.31603372,107320.0,107310.0,0.59911183]
[1748450079661,1.31603372,107320.0,107310.0,0.59911159]
[1748450079867,1.22062812,107320.0,107310.0,0.59911159]
[1748450080071,1.18402812,107320.0,107310.0,0.58485207]
[1748450080366,1.43813372,107320.0,107310.0,0.59711107]
[1748450081161,1.43809372,107320.0,107310.0,0.70087227]
[1748450081368,1.43809372,107320.0,107310.0,0.7595186]
[1748450081666,1.58809372,107320.0,107310.0,0.7595247]
[1748450081865,1.58809372,107320.0,107310.0,0.75952609]
[1748450082267,1.58809372,107320.0,107310.0,0.75952696]
[1748450082462,1.58809372,107320.0,107310.0,0.75955308]
[1748450083065,1.58809372,107320.0,107310.0,0.75955388]
[1748450083267,1.58809372,107320.0,107310.0,0.76583221]
[1748450083468,1.58809372,107320.0,107310.0,0.71276204]
[1748450083663,1.58809372,107320.0,107310.0,0.71276269]
[1748450083865,1.58809372,107320.0,107310.0,0.71276526]
[1748450084468,1.58809372,107320.0,107310.0,0.76584706]
[1748450084768,1.58809372,107320.0,107310.0,0.69472065]
[1748450084969,1.58809372,107320.0,107310.0,0.69472494]
[1748450085363,1.58809372,107320.0,107310.0,0.69472496]
[1748450085564,1.58809372,107320.0,107310.0,0.68044918]
[1748450085762,1.58809372,107320.0,107310.0,0.6947301]
[1748450085957,1.58809372,107320.0,107310.0,0.59713299]
[1748450086370,1.58809372,107320.0,107310.0,0.59713333]
[1748450086868,1.58809372,107320.0,107310.0,0.58285207]
[1748450087169,1.58809372,107320.0,107310.0,0.59713345]
[1748450087668,1.58809372,107320.0,107310.0,0.59713325]
[1748450088671,1.58809372,107320.0,107310.0,0.59713319]
[1748450089067,1.58809372,107320.0,107310.0,0.59713301]
[1748450090166,1.58809372,107320.0,107310.0,0.37512171]
[1748450090167,1.80349932,107320.0,107310.0,0.37512171]
[1748450090367,1.80349932,107320.0,107310.0,0.36215649]
[1748450090368,1.58809372,107320.0,107310.0,0.36215649]
[1748450090570,1.58809372,107320.0,107310.0,0.50097907]
[1748450090870,1.58809372,107320.0,107310.0,0.50109907]
[1748450091373,1.80349932,107320.0,107310.0,0.30050663]
[1748450091557,1.93923559,107320.0,107310.0,0.20985326]
[1748450091761,1.93923559,107320.0,107310.0,0.1747177]
[1748450091966,1.88125242,107320.0,107310.0,0.07060346]
[1748450092264,1.93941262,107320.0,107310.0,0.07086777]
[1748450093263,1.93941262,107320.0,107310.0,0.0130502]
[1748450093465,0.7046808,107310.0,107290.0,7e-08]
[1748450093668,0.1863463,107290.0,107280.0,0.03511628]
[1748450093977,0.18030289,107280.0,107270.0,0.07158311]
[1748450094175,2.10100119,107280.0,107270.0,0.1212102]
[1748450094372,2.15912207,107280.0,107270.0,0.1212102]
[1748450094970,2.19682207,107280.0,107270.0,0.1212102]
[1748450095177,2.19682207,107280.0,107270.0,0.05114525]
[1748450095364,2.13870119,107280.0,107270.0,0.05114525]
[1748450095875,2.13870119,107280.0,107270.0,0.05102525]
[1748450096062,2.19682207,107280.0,107270.0,0.08865847]
[1748450096258,2.19682207,107280.0,107270.0,0.09065847]
[1748450096467,2.19682207,107280.0,107270.0,0.09053847]
[1748450096668,2.19682207,107280.0,107270.0,0.04065847]
[1748450097375,2.19682207,107280.0,107270.0,0.00514525]
[1748450097567,2.13870119,107280.0,107270.0,0.00514525]
[1748450099171,2.09517991,107280.0,107270.0,0.00514525]
[1748450099675,2.00195991,107280.0,107270.0,0.00514525]
[1748450100372,2.00203991,107280.0,107270.0,0.00514525]
[1748450100775,2.00199991,107280.0,107270.0,0.00514525]
[1748450102063,2.00203991,107280.0,107270.0,0.00514525]
[1748450103681,1.78663431,107280.0,107270.0,0.00514525]
[1748450103881,1.78663431,107280.0,107270.0,0.04234525]
[1748450104080,2.00203991,107280.0,107270.0,0.04234525]
[1748450104276,1.46775991,107280.0,107270.0,0.04234525]
[1748450104485,2.00203991,107280.0,107270.0,0.04234525]
[1748450105180,1.78663431,107280.0,107270.0,0.04234525]
[1748450105382,1.25235431,107280.0,107270.0,0.04234525]
[1748450105684,1.78667431,107280.0,107270.0,0.04234525]
[1748450105873,1.78667431,107280.0,107270.0,0.05234525]
[1748450106381,1.78663431,107280.0,107270.0,0.05234525]
[1748450106575,2.00203991,107280.0,107270.0,0.05234525]
[1748450106775,1.78663431,107280.0,107270.0,0.05234525]
[1748450107171,1.25235431,107280.0,107270.0,0.05234525]
[1748450107371,2.00203991,107280.0,107270.0,0.05234525]
[1748450108879,2.00203991,107280.0,107270.0,1e-07]
[1748450109065,2.00203991,107280.0,107260.0,0.08152952]
[1748450109066,0.1863809,107270.0,107260.0,0.03902952]
[1748450109269,1.1708865,107270.0,107260.0,0.03902952]
[1748450109684,1.17125941,107270.0,107260.0,0.03914952]
[1748450110183,1.17125941,107270.0,107260.0,0.04314952]
[1748450111172,1.17125941,107270.0,107260.0,0.04614952]
[1748450112489,1.17125941,107270.0,107260.0,0.04602952]
[1748450112689,1.17125941,107270.0,107260.0,0.04614952]
[1748450112983,0.95585381,107270.0,107260.0,0.04614952]
[1748450113176,1.60349941,107270.0,107260.0,0.04614952]
[1748450113976,1.60349941,107270.0,107260.0,0.08534952]
[1748450115382,1.17125941,107270.0,107260.0,0.12454952]
[1748450115580,1.70557941,107270.0,107260.0,0.12454952]
[1748450115774,1.70557941,107270.0,107260.0,0.13454952]
[1748450118691,1.7489463,107270.0,107260.0,0.05614952]
[1748450118880,1.70557941,107270.0,107260.0,0.05602952]
[1748450119079,1.70557941,107270.0,107260.0,0.05614952]
[1748450119278,1.7489463,107270.0,107260.0,0.05614952]
[1748450119681,1.74903029,107270.0,107260.0,0.05614952]
[1748450120087,1.74903029,107270.0,107260.0,0.09244952]
[1748450120281,1.80715117,107270.0,107260.0,0.12796274]
[1748450121084,1.80715117,107270.0,107260.0,0.12517274]
[1748450121390,0.1863983,107260.0,107250.0,0.0397]
[1748450121587,1.25793321,107260.0,107250.0,0.1297]
[1748450121775,1.25830612,107260.0,107250.0,0.1297]
[1748450121980,1.25830612,107260.0,107250.0,0.1671]
[1748450122279,1.316427,107260.0,107250.0,0.1671]
[1748450123287,1.28668937,107260.0,107250.0,0.1721]
[1748450124492,1.28668937,107260.0,107250.0,0.2136]
[1748450124681,1.58398937,107260.0,107250.0,0.2136]
[1748450124881,1.67117236,107260.0,107250.0,0.2136]
[1748450126395,1.70947236,107260.0,107250.0,0.2136]
[1748450126891,1.62228937,107260.0,107250.0,0.2136]
[1748450127294,1.62266228,107260.0,107250.0,0.2136]
[1748450128185,1.70984527,107260.0,107250.0,0.2136]
[1748450129393,1.70984527,107260.0,107250.0,0.21372]
[1748450129579,1.62266228,107260.0,107250.0,0.21372]
[1748450129784,1.70984527,107260.0,107250.0,0.21372]
[1748450130583,2.24412527,107260.0,107250.0,0.21372]
[1748450131295,1.54939668,107260.0,107250.0,0.70968767]
[1748450131490,1.10266258,107260.0,107250.0,0.70968767]
[1748450131791,1.53490258,107260.0,107250.0,0.60698647]
[1748450131994,1.75030818,107260.0,107250.0,0.60698647]
[1748450132394,1.78800818,107260.0,107250.0,0.60686647]
[1748450132588,1.78800818,107260.0,107250.0,0.60698647]
[1748450133100,0.9939759,107260.0,107250.0,1.03909214]
[1748450133290,0.9939759,107260.0,107250.0,0.82368654]
[1748450133786,0.9939759,107260.0,107250.0,0.82356654]
[1748450134192,0.9939759,107260.0,107250.0,0.82368654]
[1748450135294,0.6331759,107260.0,107250.0,0.75350159]
[1748450136091,0.9939759,107260.0,107250.0,0.82851505]
[1748450136392,0.00013952,107270.0,107260.0,0.1863984]
[1748450136589,0.36219925,107280.0,107270.0,0.186381]
[1748450136784,1.1191688,107290.0,107280.0,0.1863636]
[1748450136999,0.59337479,107290.0,107280.0,0.67527726]
[1748450137183,0.66481479,107290.0,107280.0,0.6994687]
[1748450137492,0.79033231,107300.0,107290.0,0.1863462]
[1748450137695,0.79033231,107300.0,107290.0,0.67323775]
[1748450137696,1.23257231,107300.0,107290.0,0.67323775]
[1748450138084,0.60512241,107300.0,107290.0,0.67361066]
[1748450138401,0.98072781,107300.0,107290.0,0.67351588]
[1748450138892,0.54852781,107300.0,107290.0,0.67351588]
[1748450139203,0.00339891,107300.0,107290.0,0.98212148]
[1748450139501,0.62192781,107300.0,107290.0,0.98212148]
[1748450140011,0.00539891,107300.0,107290.0,1.02172148]
[1748450140188,0.43759891,107300.0,107290.0,1.25252137]
[1748450140500,0.43559891,107300.0,107290.0,1.32294045]
[1748450140693,0.43659891,107300.0,107290.0,1.32294045]
[1748450140888,0.00439891,107300.0,107290.0,1.49607744]
[1748450141193,0.00239891,107300.0,107290.0,1.66596116]
[1748450141402,0.00339891,107300.0,107290.0,1.59482417]
[1748450141694,0.00339891,107300.0,107290.0,1.65382466]
[1748450142096,0.00339891,107300.0,107290.0,2.01462466]
[1748450142694,1e-08,107300.0,107290.0,2.39285253]
[1748450142895,1e-08,107300.0,107290.0,2.48682833]
[1748450143296,1e-08,107300.0,107290.0,2.41569134]
[1748450143594,1e-08,107300.0,107290.0,2.43509055]
[1748450143802,0.00013952,107310.0,107300.0,0.1863289]
[1748450144000,0.00013952,107310.0,107300.0,1.66140156]
[1748450144198,0.00013952,107310.0,107300.0,1.91140156]
[1748450144900,0.00013952,107310.0,107300.0,1.91240156]
[1748450145301,0.00013952,107310.0,107300.0,1.91227605]
[1748450146406,0.00013952,107310.0,107300.0,1.91327605]
[1748450146598,0.00013952,107310.0,107300.0,1.84330562]
[1748450149003,0.00013952,107310.0,107300.0,1.80033898]
[1748450149411,0.00013952,107310.0,107300.0,1.74144586]
[1748450150097,0.00013952,107310.0,107300.0,1.80033898]
[1748450150295,0.00013952,107310.0,107300.0,1.49596141]
[1748450151617,0.00013952,107310.0,107300.0,1.28055581]
[1748450151910,0.00013952,107310.0,107300.0,1.49596141]
[1748450152301,0.00013952,107310.0,107300.0,1.44931496]
[1748450152498,0.00013952,107310.0,107300.0,1.98327496]
[1748450153504,1e-08,107310.0,107300.0,2.10733141]
[1748450154011,1e-08,107310.0,107300.0,2.11012141]
[1748450154409,1e-08,107310.0,107300.0,2.11464198]
[1748450155312,1e-08,107310.0,107300.0,2.11012643]
[1748450157096,1e-08,107310.0,107300.0,2.11000643]
[1748450157516,1e-08,107310.0,107300.0,2.14506123]
[1748450157812,1e-08,107310.0,107300.0,2.39509963]
[1748450158309,1e-08,107310.0,107300.0,2.30139984]
[1748450158508,1e-08,107310.0,107300.0,2.30591539]
[1748450159211,1e-08,107310.0,107300.0,2.05591539]
[1748450160406,1e-08,107310.0,107300.0,2.11480851]
[1748450161322,0.0375,107330.0,107300.0,2.36480851]
[1748450161612,0.0013981,107350.0,107340.0,0.18626]
[1748450161822,0.0381,107360.0,107350.0,0.1862426]
[1748450162016,0.2792781,107390.0,107380.0,0.1861906]
[1748450162017,0.3608,107390.0,107380.0,0.1861906]
[1748450162322,0.0381,107390.0,107380.0,1.07276911]
[1748450162498,0.0381,107390.0,107380.0,1.31772524]
[1748450162703,0.10013952,107400.0,107390.0,0.1861732]
[1748450162902,0.13733952,107400.0,107390.0,1.43953235]
[1748450163109,0.13733952,107400.0,107390.0,1.47448848]
[1748450163310,0.13733952,107400.0,107390.0,1.15026139]
[1748450163515,0.32349532,107400.0,107390.0,1.11530526]
[1748450164414,0.13733952,107400.0,107390.0,1.47610526]
[1748450164714,0.32349532,107400.0,107390.0,1.21466611]
[1748450165112,0.32349532,107400.0,107390.0,0.85386611]
[1748450165505,0.13933952,107400.0,107390.0,1.21366611]
[1748450165710,0.32749532,107400.0,107390.0,0.85286611]
[1748450167010,0.32749532,107400.0,107390.0,0.86666296]
[1748450167904,0.32749532,107400.0,107390.0,0.79226296]
[1748450168117,0.36499532,107400.0,107390.0,0.79226296]
[1748450168818,0.36499532,107400.0,107390.0,0.69046296]
[1748450168819,0.94627539,107400.0,107390.0,0.69046296]
[1748450169015,1.06627539,107400.0,107390.0,0.29049291]
[1748450169203,1.22627539,107400.0,107390.0,0.29049291]
[1748450169911,1.22627539,107400.0,107390.0,0.11086582]
[1748450170706,1.22627539,107400.0,107390.0,0.10086582]
[1748450170912,1.22627539,107400.0,107390.0,0.10074582]
[1748450171219,1.22627539,107400.0,107390.0,0.10086582]
[1748450171413,1.65791539,107400.0,107390.0,0.10086582]
[1748450172411,1.65791539,107400.0,107390.0,0.10365582]
[1748450174523,1.90791539,107400.0,107390.0,0.10365582]
[1748450174717,2.22151146,107400.0,107390.0,0.10365582]
[1748450174916,0.1861907,107380.0,107370.0,0.18634752]
[1748450175117,1.72999077,107380.0,107370.0,0.38634752]
[1748450175318,1.80389077,107380.0,107370.0,0.38634752]
[1748450175521,0.9655,107380.0,107370.0,0.38634752]
[1748450175819,1.5834106,107380.0,107370.0,0.41634752]
[1748450176520,1.5864106,107380.0,107370.0,0.41634752]
[1748450176908,1.5864106,107380.0,107370.0,0.23013952]
[1748450176909,1.80689067,107380.0,107370.0,0.23013952]
[1748450177214,1.80689067,107380.0,107370.0,0.38734752]
[1748450177415,1.80689067,107380.0,107370.0,0.38746752]
[1748450177809,1.80389067,107380.0,107370.0,0.38646752]
[1748450178112,1.82107068,107380.0,107370.0,0.38646752]
[1748450178615,1.82207068,107380.0,107370.0,0.38646752]
[1748450180912,1.96207068,107380.0,107370.0,0.00025952]
[1748450181119,1.96207068,107380.0,107370.0,0.01025952]
[1748450181314,1.96207068,107380.0,107370.0,0.01013952]
[1748450181519,1.96207068,107380.0,107370.0,0.01025952]
[1748450182524,1.96207068,107380.0,107370.0,0.19646752]
[1748450182822,1.96231068,107380.0,107370.0,0.19646752]
[1748450184422,1.96231068,107380.0,107370.0,0.45646752]
[1748450185020,1.30987061,107380.0,107370.0,0.45646752]
[1748450185319,1.30987061,107380.0,107370.0,0.53306752]
[1748450185320,0.81368001,107380.0,107370.0,0.53306752]
[1748450185523,0.52380001,107380.0,107370.0,0.83047605]
[1748450185822,0.09208001,107380.0,107370.0,0.83047605]
[1748450186020,0.004,107380.0,107370.0,1.2379084]
[1748450186220,0.004,107380.0,107370.0,1.3397884]
[1748450186427,0.004,107380.0,107370.0,1.1189884]
[1748450187019,0.1901913,107380.0,107370.0,1.1189884]
[1748450187214,0.5499913,107380.0,107370.0,0.6971084]
[1748450187414,0.6230913,107380.0,107370.0,0.8469884]
[1748450187620,0.6230913,107380.0,107370.0,0.8471084]
[1748450188023,0.6230913,107380.0,107370.0,0.84714754]
[1748450188619,0.003,107380.0,107370.0,0.87008234]
[1748450188828,0.003,107380.0,107370.0,1.23088234]
[1748450189021,0.1891913,107380.0,107370.0,1.23088234]
[1748450189521,0.1891913,107380.0,107370.0,1.29775724]
[1748450189921,0.5499913,107380.0,107370.0,0.93695821]
[1748450190231,0.5499913,107380.0,107370.0,0.89383227]
[1748450190422,0.5852913,107380.0,107370.0,0.93695948]
[1748450191731,0.5852913,107380.0,107370.0,0.87809543]
[1748450192429,0.5852913,107380.0,107370.0,0.93709704]
[1748450192635,0.5852913,107380.0,107370.0,0.87809543]
[1748450193133,0.5852913,107380.0,107370.0,1.03910288]
[1748450193432,0.6217913,107380.0,107370.0,1.06809543]
[1748450193730,0.6217913,107380.0,107370.0,0.87809543]
[1748450194628,0.6217913,107380.0,107370.0,0.94877332]
[1748450194824,0.3638,107380.0,107370.0,0.94877332]
[1748450195135,0.5499912,107380.0,107370.0,0.94877332]
[1748450195331,0.3638,107380.0,107370.0,0.94877332]
[1748450195536,0.5499912,107380.0,107370.0,0.94877332]
[1748450195837,0.5499912,107380.0,107370.0,0.90214097]
[1748450196030,0.1891912,107380.0,107370.0,0.90214097]
[1748450196531,0.1891912,107380.0,107370.0,0.95368752]
[1748450196829,0.1891912,107380.0,107370.0,0.89059837]
[1748450198130,0.5499912,107380.0,107370.0,0.89059837]
[1748450198333,0.5499912,107380.0,107370.0,1.05059837]
[1748450198637,0.5499912,107380.0,107370.0,0.99155641]
[1748450199231,0.3638,107380.0,107370.0,0.99155641]
[1748450199433,0.5499912,107380.0,107370.0,0.99155641]
[1748450199930,0.1891912,107380.0,107370.0,0.99155641]
[1748450200838,0.003,107380.0,107370.0,0.94833587]
[1748450201138,0.003,107380.0,107370.0,1.05033587]
[1748450201139,0.1891912,107380.0,107370.0,1.05033587]
[1748450201435,0.5499912,107380.0,107370.0,1.05033587]
[1748450201623,0.2255912,107380.0,107370.0,1.05033587]
[1748450201828,0.5863912,107380.0,107370.0,0.36833587]
[1748450202023,0.84032088,107380.0,107370.0,0.25813005]
[1748450202227,0.84032088,107380.0,107370.0,0.38228344]
[1748450202433,0.84032088,107380.0,107370.0,0.33495138]
[1748450202641,0.84032088,107380.0,107370.0,0.2079939]
[1748450202836,0.88386245,107380.0,107370.0,0.13790555]
[1748450203022,0.88386245,107380.0,107370.0,0.13802555]
[1748450203635,0.88386245,107380.0,107370.0,0.32423415]
[1748450203934,0.88938103,107380.0,107370.0,0.22187874]
[1748450204142,0.6251912,107380.0,107370.0,0.28100986]
[1748450204439,1.07139075,107380.0,107370.0,0.35440986]
[1748450204935,1.07139075,107380.0,107370.0,0.39764532]
[1748450205140,1.07139075,107380.0,107370.0,0.35440986]
[1748450205728,1.07139075,107380.0,107370.0,0.3976518]
[1748450205933,1.07139075,107380.0,107370.0,0.3601518]
[1748450206141,1.07139075,107380.0,107370.0,0.3242518]
[1748450206344,1.29203901,107380.0,107370.0,0.3242518]
[1748450206735,1.29203901,107380.0,107370.0,0.22188433]
[1748450207736,1.33558411,107380.0,107370.0,0.22188433]
[1748450208136,1.29203901,107380.0,107370.0,0.22188433]
[1748450208347,1.33558411,107380.0,107370.0,0.22188433]
[1748450208645,1.29203901,107380.0,107370.0,0.22188433]
[1748450209945,1.33558411,107380.0,107370.0,0.22188433]
[1748450210747,1.29203901,107380.0,107370.0,0.18646812]
[1748450210939,1.33558388,107380.0,107370.0,0.22186943]
[1748450213149,1.33558388,107380.0,107370.0,0.28100055]
[1748450213440,1.33506388,107380.0,107370.0,0.28100055]
[1748450213646,1.33506388,107380.0,107370.0,0.31860055]
[1748450214540,1.33506388,107380.0,107370.0,0.36183528]
[1748450214736,1.29151901,107380.0,107370.0,0.36183528]
[1748450214942,1.11441562,107380.0,107370.0,0.36183528]
[1748450215142,1.33506388,107380.0,107370.0,0.36183528]
[1748450215342,1.33506388,107380.0,107370.0,0.36635083]
[1748450217351,1.33506388,107380.0,107370.0,0.32875083]
[1748450218847,1.33506388,107380.0,107370.0,0.22638498]
[1748450219162,1.33506388,107380.0,107370.0,0.26378498]
[1748450219340,1.33507996,107380.0,107370.0,0.26415856]
[1748450220537,1.33507996,107380.0,107370.0,0.26694856]
[1748450221436,1.33507996,107380.0,107370.0,0.26243301]
[1748450222046,1.33508491,107380.0,107370.0,0.0388315]
[1748450222355,1.33508491,107380.0,107370.0,0.04322705]
[1748450222559,1.33508491,107380.0,107370.0,0.22955545]
[1748450222750,1.33508491,107380.0,107370.0,0.30275545]
[1748450224047,1.32959862,107380.0,107370.0,0.30275545]
[1748450224659,1.32959862,107380.0,107370.0,0.11654705]
[1748450225554,1.11443665,107380.0,107370.0,0.21909825]
[1748450225753,1.32959862,107380.0,107370.0,0.21909825]
[1748450226250,1.3296089,107380.0,107370.0,0.21909365]
[1748450226650,1.38772978,107380.0,107370.0,0.21909365]
[1748450227643,1.38772978,107380.0,107370.0,0.40530195]
[1748450228460,1.38772978,107380.0,107370.0,0.44090195]
[1748450229556,1.38772978,107380.0,107370.0,0.38177083]
[1748450229858,1.38772978,107380.0,107370.0,0.44096635]
[1748450230560,1.38777225,107380.0,107370.0,0.38180714]
[1748450231262,1.38777225,107380.0,107370.0,0.19559884]
[1748450231643,1.43133659,107380.0,107370.0,0.31348879]
[1748450232261,1.43133659,107380.0,107370.0,0.27698879]
[1748450234850,1.43133659,107380.0,107370.0,0.27720533]
[1748450235050,0.99965659,107380.0,107370.0,0.46341373]
[1748450235252,1.43133659,107380.0,107370.0,0.31260533]
[1748450236351,1.43133659,107380.0,107370.0,0.27720533]